[Event "Titled Tuesday Blitz March 28 Late 2023"]
[White "Pasti, Aron"]
[Black "Margvelashvili, Giorgi"]
[WhiteFideId "785857"]
[BlackFideId "13602926"]
[WhiteElo "2173"]
[BlackElo "2549"]
[Result "1-0"]
[Round "01"]
[TimeControl "180+2"]
[Date "2023.03.28"]
[WhiteClock "0:00:13"]
[BlackClock "0:00:08"]

1. e3 {[%clk 0:03:00]}  d5 {[%clk 0:02:59]} 2. d4 {[%clk 0:02:59]}  Nf6 {[%clk 0:02:58]} 3. Nf3 {[%clk 0:02:58]}  Bf5 {[%clk 0:02:55]} 4. Bd3 {[%clk 0:02:57]}  Bxd3 {[%clk 0:02:55]} 5. Qxd3 {[%clk 0:02:58]}  e6 {[%clk 0:02:55]} 6. c4 {[%clk 0:02:57]}  c6 {[%clk 0:02:54]} 7. O-O {[%clk 0:02:54]}  Nbd7 {[%clk 0:02:53]} 8. b3 {[%clk 0:02:53]}  Bd6 {[%clk 0:02:46]} 9. Ba3 {[%clk 0:02:52]}  Bxa3 {[%clk 0:02:43]} 10. Nxa3 {[%clk 0:02:53]}  O-O {[%clk 0:02:41]} 11. Nb1 {[%clk 0:02:38]}  Qe7 {[%clk 0:02:39]} 12. Nc3 {[%clk 0:02:36]}  dxc4 {[%clk 0:02:38]} 13. bxc4 {[%clk 0:02:35]}  e5 {[%clk 0:02:39]} 14. Qf5 {[%clk 0:02:27]}  Rfe8 {[%clk 0:02:33]} 15. Rab1 {[%clk 0:02:22]}  b6 {[%clk 0:02:25]} 16. dxe5 {[%clk 0:02:19]}  Nxe5 {[%clk 0:02:23]} 17. Nd4 {[%clk 0:02:18]}  Qd7 {[%clk 0:02:00]} 18. Qxd7 {[%clk 0:02:14]}  Nfxd7 {[%clk 0:02:01]} 19. Rfc1 {[%clk 0:02:07]}  Rac8 {[%clk 0:01:41]} 20. Ne4 {[%clk 0:01:53]}  Nxc4 {[%clk 0:01:13]} 21. Rxc4 {[%clk 0:00:51]}  Rxe4 {[%clk 0:01:13]} 22. Rxc6 {[%clk 0:00:51]}  Rxc6 {[%clk 0:01:13]} 23. Nxc6 {[%clk 0:00:52]}  a5 {[%clk 0:01:13]} 24. f3 {[%clk 0:00:49]}  Rc4 {[%clk 0:01:03]} 25. Rd1 {[%clk 0:00:41]}  Rxc6 {[%clk 0:00:55]} 26. Rxd7 {[%clk 0:00:40]}  h5 {[%clk 0:00:52]} 27. Rb7 {[%clk 0:00:39]}  g6 {[%clk 0:00:49]} 28. Kf2 {[%clk 0:00:38]}  Kg7 {[%clk 0:00:49]} 29. Kg3 {[%clk 0:00:36]}  g5 {[%clk 0:00:47]} 30. h4 {[%clk 0:00:35]}  gxh4+ {[%clk 0:00:45]} 31. Kxh4 {[%clk 0:00:36]}  Kg6 {[%clk 0:00:46]} 32. e4 {[%clk 0:00:30]}  f6 {[%clk 0:00:46]} 33. Rb8 {[%clk 0:00:29]}  a4 {[%clk 0:00:42]} 34. Rg8+ {[%clk 0:00:27]}  Kf7 {[%clk 0:00:38]} 35. Rb8 {[%clk 0:00:27]}  Rc2 {[%clk 0:00:35]} 36. Kxh5 {[%clk 0:00:21]}  Rxg2 {[%clk 0:00:34]} 37. Rb7+ {[%clk 0:00:21]}  Kf8 {[%clk 0:00:32]} 38. Rxb6 {[%clk 0:00:22]}  Ke7 {[%clk 0:00:30]} 39. Rb7+ {[%clk 0:00:22]}  Ke6 {[%clk 0:00:30]} 40. Rb6+ {[%clk 0:00:22]}  Ke5 {[%clk 0:00:29]} 41. Rb5+ {[%clk 0:00:20]}  Ke6 {[%clk 0:00:12]} 42. Rb6+ {[%clk 0:00:20]}  Ke7 {[%clk 0:00:11]} 43. a3 {[%clk 0:00:19]}  Ra2 {[%clk 0:00:09]} 44. Kg6 {[%clk 0:00:18]}  Rxa3 {[%clk 0:00:10]} 45. Rxf6 {[%clk 0:00:17]}  Rb3 {[%clk 0:00:09]} 46. f4 {[%clk 0:00:16]}  a3 {[%clk 0:00:08]} 47. Ra6 {[%clk 0:00:16]}  Kd7 {[%clk 0:00:09]} 48. e5 {[%clk 0:00:15]}  Kc7 {[%clk 0:00:09]} 49. e6 {[%clk 0:00:15]}  Kb7 {[%clk 0:00:08]} 50. Ra4 {[%clk 0:00:15]}  Rf3 {[%clk 0:00:07]} 51. e7 {[%clk 0:00:14]}  Kc7 {[%clk 0:00:08]} 52. e8=Q {[%clk 0:00:13]} 1-0


[Site "https://www.chess.com"]

[Event "Titled Tuesday Blitz March 28 Late 2023"]
[White "Levitskiy, Andrey"]
[Black "Van Dael, Siem"]
[WhiteFideId "14132885"]
[BlackFideId "1049771"]
[WhiteElo "2335"]
[BlackElo "2336"]
[Result "1-0"]
[Round "01"]
[TimeControl "180+2"]
[Date "2023.03.28"]
[WhiteClock "0:00:13"]
[BlackClock "0:00:07"]

1. e4 {[%clk 0:02:59]}  d5 {[%clk 0:02:51]} 2. exd5 {[%clk 0:02:58]}  Nf6 {[%clk 0:02:51]} 3. Nf3 {[%clk 0:02:58]}  Bg4 {[%clk 0:02:51]} 4. h3 {[%clk 0:02:55]}  Bxf3 {[%clk 0:02:51]} 5. Qxf3 {[%clk 0:02:56]}  Qxd5 {[%clk 0:02:52]} 6. Qxd5 {[%clk 0:02:55]}  Nxd5 {[%clk 0:02:53]} 7. g3 {[%clk 0:02:54]}  Nb4 {[%clk 0:02:50]} 8. Na3 {[%clk 0:02:53]}  e5 {[%clk 0:02:48]} 9. c3 {[%clk 0:02:47]}  Nd5 {[%clk 0:02:42]} 10. Bg2 {[%clk 0:02:46]}  c6 {[%clk 0:02:41]} 11. Nc2 {[%clk 0:02:43]}  Nd7 {[%clk 0:02:36]} 12. O-O {[%clk 0:02:34]}  Bc5 {[%clk 0:02:35]} 13. b3 {[%clk 0:02:06]}  O-O {[%clk 0:02:33]} 14. Bb2 {[%clk 0:02:06]}  a5 {[%clk 0:02:31]} 15. a3 {[%clk 0:02:01]}  Rfe8 {[%clk 0:02:21]} 16. Rfe1 {[%clk 0:01:35]}  f5 {[%clk 0:01:57]} 17. c4 {[%clk 0:01:21]}  N5f6 {[%clk 0:01:32]} 18. d4 {[%clk 0:01:16]}  exd4 {[%clk 0:01:24]} 19. Nxd4 {[%clk 0:01:17]}  g6 {[%clk 0:01:18]} 20. Rad1 {[%clk 0:01:07]}  Kf7 {[%clk 0:01:03]} 21. Kf1 {[%clk 0:01:00]}  Rad8 {[%clk 0:00:49]} 22. Nc2 {[%clk 0:00:40]}  Rxe1+ {[%clk 0:00:38]} 23. Rxe1 {[%clk 0:00:32]}  Re8 {[%clk 0:00:32]} 24. Rd1 {[%clk 0:00:30]}  Re7 {[%clk 0:00:23]} 25. b4 {[%clk 0:00:28]}  axb4 {[%clk 0:00:23]} 26. axb4 {[%clk 0:00:28]}  Bb6 {[%clk 0:00:23]} 27. c5 {[%clk 0:00:22]}  Bc7 {[%clk 0:00:23]} 28. Ne3 {[%clk 0:00:22]}  Ne5 {[%clk 0:00:16]} 29. f4 {[%clk 0:00:17]}  Ned7 {[%clk 0:00:11]} 30. Nc4 {[%clk 0:00:17]}  Ne4 {[%clk 0:00:11]} 31. Bxe4 {[%clk 0:00:16]}  fxe4 {[%clk 0:00:09]} 32. Ke2 {[%clk 0:00:17]}  Nf6 {[%clk 0:00:07]} 33. Bxf6 {[%clk 0:00:15]}  Kxf6 {[%clk 0:00:06]} 34. Ke3 {[%clk 0:00:16]}  h5 {[%clk 0:00:03]} 35. Rd4 {[%clk 0:00:12]}  g5 {[%clk 0:00:03]} 36. Rxe4 {[%clk 0:00:06]}  gxf4+ {[%clk 0:00:04]} 37. gxf4 {[%clk 0:00:06]}  Rg7 {[%clk 0:00:05]} 38. Nd6 {[%clk 0:00:04]}  Bxd6 {[%clk 0:00:04]} 39. cxd6 {[%clk 0:00:04]}  Rd7 {[%clk 0:00:04]} 40. Rd4 {[%clk 0:00:05]}  Ke6 {[%clk 0:00:04]} 41. Ke4 {[%clk 0:00:04]}  Rxd6 {[%clk 0:00:04]} 42. Rxd6+ {[%clk 0:00:04]}  Kxd6 {[%clk 0:00:05]} 43. Kf5 {[%clk 0:00:05]}  b5 {[%clk 0:00:03]} 44. Kg6 {[%clk 0:00:05]}  c5 {[%clk 0:00:03]} 45. bxc5+ {[%clk 0:00:06]}  Kxc5 {[%clk 0:00:04]} 46. f5 {[%clk 0:00:07]}  b4 {[%clk 0:00:04]} 47. f6 {[%clk 0:00:08]}  b3 {[%clk 0:00:05]} 48. f7 {[%clk 0:00:09]}  b2 {[%clk 0:00:05]} 49. f8=Q+ {[%clk 0:00:09]}  Kc4 {[%clk 0:00:06]} 50. Qf1+ {[%clk 0:00:10]}  Kc3 {[%clk 0:00:06]} 51. Qb1 {[%clk 0:00:11]}  Kb3 {[%clk 0:00:07]} 52. Kxh5 {[%clk 0:00:12]}  Kc3 {[%clk 0:00:07]} 53. Kg4 {[%clk 0:00:13]}  Kb3 {[%clk 0:00:07]} 54. h4 {[%clk 0:00:13]} 1-0


[Site "https://www.chess.com"]

[Event "Titled Tuesday Blitz March 28 Late 2023"]
[White "Guzman Moneo, Alberto"]
[Black "Tilicheev, Viacheslav"]
[WhiteFideId "2209616"]
[BlackFideId "24114928"]
[WhiteElo "2157"]
[BlackElo "2415"]
[Result "0-1"]
[Round "01"]
[TimeControl "180+2"]
[Date "2023.03.28"]
[WhiteClock "0:00:33"]
[BlackClock "0:01:31"]

1. Nf3 {[%clk 0:02:56]}  Nf6 {[%clk 0:02:59]} 2. g3 {[%clk 0:02:56]}  d5 {[%clk 0:02:59]} 3. Bg2 {[%clk 0:02:56]}  e6 {[%clk 0:02:59]} 4. O-O {[%clk 0:02:55]}  Be7 {[%clk 0:02:59]} 5. d3 {[%clk 0:02:55]}  O-O {[%clk 0:02:58]} 6. b3 {[%clk 0:02:55]}  b6 {[%clk 0:02:58]} 7. Bb2 {[%clk 0:02:56]}  Bb7 {[%clk 0:02:59]} 8. Nbd2 {[%clk 0:02:56]}  Nbd7 {[%clk 0:02:59]} 9. c4 {[%clk 0:02:56]}  c5 {[%clk 0:02:58]} 10. e3 {[%clk 0:02:53]}  Rc8 {[%clk 0:02:57]} 11. Qe2 {[%clk 0:02:53]}  Qc7 {[%clk 0:02:57]} 12. Rac1 {[%clk 0:02:51]}  Qb8 {[%clk 0:02:57]} 13. d4 {[%clk 0:02:44]}  Rfd8 {[%clk 0:02:51]} 14. Rfd1 {[%clk 0:02:37]}  cxd4 {[%clk 0:02:47]} 15. Nxd4 {[%clk 0:02:34]}  dxc4 {[%clk 0:02:45]} 16. Nxc4 {[%clk 0:02:32]}  Bxg2 {[%clk 0:02:42]} 17. Kxg2 {[%clk 0:02:32]}  Nc5 {[%clk 0:02:39]} 18. Qf3 {[%clk 0:02:24]}  Nce4 {[%clk 0:02:17]} 19. h3 {[%clk 0:01:48]}  Ng5 {[%clk 0:02:16]} 20. Qf4 {[%clk 0:01:36]}  Qb7+ {[%clk 0:02:09]} 21. f3 {[%clk 0:01:36]}  Nd5 {[%clk 0:02:04]} 22. Qe5 {[%clk 0:01:08]}  f6 {[%clk 0:01:50]} 23. Nxe6 {[%clk 0:00:56]}  fxe5 {[%clk 0:01:47]} 24. Nxd8 {[%clk 0:00:56]}  Rxd8 {[%clk 0:01:45]} 25. e4 {[%clk 0:00:45]}  b5 {[%clk 0:01:33]} 26. exd5 {[%clk 0:00:38]}  bxc4 {[%clk 0:01:32]} 27. Bxe5 {[%clk 0:00:33]}  Rxd5 {[%clk 0:01:31]} 0-1


[Site "https://www.chess.com"]

[Event "Titled Tuesday Blitz March 28 Late 2023"]
[White "Papasimakopoulos, Alexandros"]
[Black "Ansh M Shah"]
[WhiteFideId "4244125"]
[BlackFideId "25033379"]
[WhiteElo "2359"]
[BlackElo "2084"]
[Result "1/2-1/2"]
[Round "01"]
[TimeControl "180+2"]
[Date "2023.03.28"]
[WhiteClock "0:00:56"]
[BlackClock "0:00:15"]

1. d4 {[%clk 0:02:57]}  Nf6 {[%clk 0:02:59]} 2. c4 {[%clk 0:02:57]}  e6 {[%clk 0:03:00]} 3. Nc3 {[%clk 0:02:58]}  d5 {[%clk 0:03:01]} 4. cxd5 {[%clk 0:02:58]}  exd5 {[%clk 0:03:02]} 5. Bg5 {[%clk 0:02:58]}  Be7 {[%clk 0:03:02]} 6. e3 {[%clk 0:02:58]}  O-O {[%clk 0:03:03]} 7. Bd3 {[%clk 0:02:59]}  c6 {[%clk 0:03:03]} 8. Qc2 {[%clk 0:03:00]}  Nbd7 {[%clk 0:03:03]} 9. Nf3 {[%clk 0:02:59]}  Re8 {[%clk 0:03:03]} 10. O-O {[%clk 0:03:00]}  h6 {[%clk 0:03:04]} 11. Bh4 {[%clk 0:03:00]}  Ne4 {[%clk 0:03:05]} 12. Bxe7 {[%clk 0:03:00]}  Qxe7 {[%clk 0:03:06]} 13. Bxe4 {[%clk 0:03:00]}  dxe4 {[%clk 0:03:07]} 14. Nd2 {[%clk 0:03:01]}  Nf6 {[%clk 0:03:07]} 15. Rab1 {[%clk 0:02:58]}  Be6 {[%clk 0:03:07]} 16. b4 {[%clk 0:02:58]}  a6 {[%clk 0:03:04]} 17. a4 {[%clk 0:02:57]}  Bd5 {[%clk 0:03:02]} 18. Nxd5 {[%clk 0:02:54]}  Nxd5 {[%clk 0:02:58]} 19. Qc5 {[%clk 0:02:54]}  f5 {[%clk 0:02:40]} 20. Qxe7 {[%clk 0:02:51]}  Rxe7 {[%clk 0:02:41]} 21. Rfc1 {[%clk 0:02:51]}  Rf8 {[%clk 0:02:09]} 22. g3 {[%clk 0:02:51]}  g5 {[%clk 0:02:08]} 23. b5 {[%clk 0:02:48]}  axb5 {[%clk 0:02:09]} 24. axb5 {[%clk 0:02:49]}  Rf6 {[%clk 0:02:10]} 25. bxc6 {[%clk 0:02:49]}  bxc6 {[%clk 0:02:11]} 26. Rb8+ {[%clk 0:02:38]}  Kg7 {[%clk 0:02:11]} 27. Rc8 {[%clk 0:02:38]}  f4 {[%clk 0:01:57]} 28. Nc4 {[%clk 0:02:31]}  fxe3 {[%clk 0:01:44]} 29. fxe3 {[%clk 0:02:27]}  Rf3 {[%clk 0:01:43]} 30. Re1 {[%clk 0:02:11]}  Rf6 {[%clk 0:01:36]} 31. Ne5 {[%clk 0:02:08]}  Nb4 {[%clk 0:01:14]} 32. Re2 {[%clk 0:02:03]}  Nd3 {[%clk 0:01:10]} 33. Nxc6 {[%clk 0:01:49]}  Ref7 {[%clk 0:01:08]} 34. Ne5 {[%clk 0:01:39]}  Rf1+ {[%clk 0:01:06]} 35. Kg2 {[%clk 0:01:39]}  R7f2+ {[%clk 0:01:01]} 36. Rxf2 {[%clk 0:01:38]}  Rxf2+ {[%clk 0:01:01]} 37. Kh3 {[%clk 0:01:38]}  h5 {[%clk 0:00:33]} 38. Rc7+ {[%clk 0:01:26]}  Kh6 {[%clk 0:00:25]} 39. Rc6+ {[%clk 0:01:22]}  Kh7 {[%clk 0:00:24]} 40. g4 {[%clk 0:01:13]}  Nxe5 {[%clk 0:00:18]} 41. dxe5 {[%clk 0:01:12]}  Rf3+ {[%clk 0:00:18]} 42. Kg2 {[%clk 0:01:13]}  hxg4 {[%clk 0:00:19]} 43. e6 {[%clk 0:01:07]}  Kg6 {[%clk 0:00:19]} 44. Rc5 {[%clk 0:01:05]}  Kf6 {[%clk 0:00:19]} 45. Re5 {[%clk 0:01:04]}  Ke7 {[%clk 0:00:18]} 46. Rxe4 {[%clk 0:01:04]}  Rh3 {[%clk 0:00:13]} 47. Rxg4 {[%clk 0:01:04]}  Rxe3 {[%clk 0:00:14]} 48. Rxg5 {[%clk 0:00:59]}  Rxe6 {[%clk 0:00:14]} 49. Rf5 {[%clk 0:00:53]}  Rf6 {[%clk 0:00:14]} 50. Ra5 {[%clk 0:00:53]}  Kf7 {[%clk 0:00:14]} 51. Kg3 {[%clk 0:00:54]}  Kg6 {[%clk 0:00:15]} 52. Kg4 {[%clk 0:00:54]}  Rc6 {[%clk 0:00:15]} 53. Ra4 {[%clk 0:00:55]}  Rb6 {[%clk 0:00:15]} 54. Rc4 {[%clk 0:00:54]}  Ra6 {[%clk 0:00:15]} 55. Rb4 {[%clk 0:00:54]}  Rc6 {[%clk 0:00:15]} 56. h3 {[%clk 0:00:55]}  Ra6 {[%clk 0:00:15]} 57. Rc4 {[%clk 0:00:56]}  Rb6 {[%clk 0:00:16]} 58. Rc8 {[%clk 0:00:56]}  Rb4+ {[%clk 0:00:15]} 59. Kg3 {[%clk 0:00:56]}  Rb3+ {[%clk 0:00:16]} 60. Kf4 {[%clk 0:00:57]}  Rxh3 {[%clk 0:00:15]} 61. Rc6+ {[%clk 0:00:57]}  Kf7 {[%clk 0:00:15]} 62. Kg4 {[%clk 0:00:57]}  Rb3 {[%clk 0:00:14]} 63. Rc5 {[%clk 0:00:58]}  Rb4+ {[%clk 0:00:15]} 64. Kf5 {[%clk 0:00:58]}  Ke7 {[%clk 0:00:15]} 65. Ke5 {[%clk 0:00:58]}  Kd7 {[%clk 0:00:15]} 66. Ra5 {[%clk 0:00:57]}  Rh4 {[%clk 0:00:15]} 67. Ra7+ {[%clk 0:00:56]}  Kc6 {[%clk 0:00:16]} 68. Ra1 {[%clk 0:00:56]}  Rh5+ {[%clk 0:00:15]} 1/2-1/2


[Site "https://www.chess.com"]

[Event "Titled Tuesday Blitz March 28 Late 2023"]
[White "Sliwicki, Damian"]
[Black "Korchmar, Vasiliy"]
[WhiteFideId "1127128"]
[BlackFideId "24131750"]
[WhiteElo "2030"]
[BlackElo "2370"]
[Result "0-1"]
[Round "01"]
[TimeControl "180+2"]
[Date "2023.03.28"]
[WhiteClock "0:00:02"]
[BlackClock "0:00:30"]

1. e4 {[%clk 0:02:42]}  c5 {[%clk 0:02:59]} 2. Nf3 {[%clk 0:02:41]}  d6 {[%clk 0:02:59]} 3. d4 {[%clk 0:02:40]}  cxd4 {[%clk 0:03:00]} 4. Qxd4 {[%clk 0:02:40]}  Nc6 {[%clk 0:03:00]} 5. Bb5 {[%clk 0:02:40]}  a6 {[%clk 0:03:00]} 6. Bxc6+ {[%clk 0:02:40]}  bxc6 {[%clk 0:03:01]} 7. Nc3 {[%clk 0:02:40]}  e5 {[%clk 0:03:01]} 8. Qc4 {[%clk 0:02:34]}  Qc7 {[%clk 0:02:51]} 9. Bg5 {[%clk 0:02:20]}  h6 {[%clk 0:02:47]} 10. Bh4 {[%clk 0:02:19]}  Be6 {[%clk 0:02:47]} 11. Qa4 {[%clk 0:02:16]}  Be7 {[%clk 0:02:15]} 12. Nd5 {[%clk 0:01:59]}  Bxd5 {[%clk 0:02:14]} 13. exd5 {[%clk 0:02:00]}  Bxh4 {[%clk 0:02:14]} 14. Nxh4 {[%clk 0:02:01]}  Ne7 {[%clk 0:02:13]} 15. Rd1 {[%clk 0:01:46]}  O-O {[%clk 0:02:04]} 16. dxc6 {[%clk 0:01:44]}  Rfb8 {[%clk 0:01:42]} 17. O-O {[%clk 0:01:38]}  Rxb2 {[%clk 0:01:39]} 18. Rd3 {[%clk 0:01:25]}  Qxc6 {[%clk 0:01:27]} 19. Qa3 {[%clk 0:01:07]}  Qxc2 {[%clk 0:01:09]} 20. Qxd6 {[%clk 0:00:49]}  Rab8 {[%clk 0:00:54]} 21. Rg3 {[%clk 0:00:41]}  Rb1 {[%clk 0:00:50]} 22. Rb3 {[%clk 0:00:06]}  Rxf1+ {[%clk 0:00:30]} 23. Kxf1 {[%clk 0:00:06]}  Qc4+ {[%clk 0:00:31]} 24. Qd3 {[%clk 0:00:02]}  Qc1+ {[%clk 0:00:30]} 25. Ke2 {[%clk 0:00:02]}  Rc8 {[%clk 0:00:31]} 26. Qd2 {[%clk 0:00:02]}  Rc2 {[%clk 0:00:30]} 27. Rb8+ {[%clk 0:00:01]}  Kh7 {[%clk 0:00:31]} 28. Re8 {[%clk 0:00:02]}  Qxd2+ {[%clk 0:00:30]} 0-1


[Site "https://www.chess.com"]

[Event "Titled Tuesday Blitz March 28 Late 2023"]
[White "Shkuran, Danylo"]
[Black "Javakhadze, Zurab"]
[WhiteFideId "14106248"]
[BlackFideId "13603647"]
[WhiteElo "2427"]
[BlackElo "2381"]
[Result "0-1"]
[Round "01"]
[TimeControl "180+2"]
[Date "2023.03.28"]
[WhiteClock "0:00:20"]
[BlackClock "0:00:31"]

1. d4 {[%clk 0:02:45]}  Nf6 {[%clk 0:02:59]} 2. Nf3 {[%clk 0:02:44]}  e6 {[%clk 0:02:55]} 3. g3 {[%clk 0:02:44]}  b6 {[%clk 0:02:53]} 4. Bg2 {[%clk 0:02:45]}  Bb7 {[%clk 0:02:54]} 5. O-O {[%clk 0:02:46]}  Be7 {[%clk 0:02:54]} 6. b3 {[%clk 0:02:46]}  O-O {[%clk 0:02:48]} 7. Bb2 {[%clk 0:02:46]}  c5 {[%clk 0:02:35]} 8. e3 {[%clk 0:02:43]}  Nc6 {[%clk 0:02:33]} 9. c4 {[%clk 0:02:43]}  cxd4 {[%clk 0:02:31]} 10. Nxd4 {[%clk 0:02:44]}  Rc8 {[%clk 0:02:31]} 11. Nd2 {[%clk 0:02:43]}  d5 {[%clk 0:02:29]} 12. Rc1 {[%clk 0:02:41]}  Nxd4 {[%clk 0:02:22]} 13. Bxd4 {[%clk 0:02:41]}  Ba3 {[%clk 0:02:22]} 14. Rc2 {[%clk 0:02:39]}  Qe7 {[%clk 0:02:23]} 15. Qf3 {[%clk 0:02:33]}  e5 {[%clk 0:02:18]} 16. Ba1 {[%clk 0:02:29]}  Rc7 {[%clk 0:01:52]} 17. Qf5 {[%clk 0:02:23]}  Re8 {[%clk 0:01:52]} 18. Nf3 {[%clk 0:02:12]}  Bd6 {[%clk 0:01:46]} 19. Rfc1 {[%clk 0:02:03]}  Bc8 {[%clk 0:01:41]} 20. Qg5 {[%clk 0:02:02]}  h6 {[%clk 0:01:35]} 21. Qh4 {[%clk 0:02:02]}  Bf5 {[%clk 0:01:35]} 22. Rd2 {[%clk 0:01:55]}  Bb4 {[%clk 0:01:24]} 23. Rdd1 {[%clk 0:01:53]}  Ba3 {[%clk 0:01:05]} 24. Bxe5 {[%clk 0:01:47]}  Bxc1 {[%clk 0:01:05]} 25. Bxc7 {[%clk 0:01:39]}  Bxe3 {[%clk 0:01:02]} 26. Be5 {[%clk 0:01:13]}  Bxf2+ {[%clk 0:00:55]} 27. Kh1 {[%clk 0:00:50]}  dxc4 {[%clk 0:00:51]} 28. Bxf6 {[%clk 0:00:43]}  Qxf6 {[%clk 0:00:50]} 29. Qxf6 {[%clk 0:00:43]}  gxf6 {[%clk 0:00:51]} 30. bxc4 {[%clk 0:00:43]}  Re2 {[%clk 0:00:47]} 31. Rd2 {[%clk 0:00:28]}  Rxd2 {[%clk 0:00:47]} 32. Nxd2 {[%clk 0:00:29]}  Kf8 {[%clk 0:00:47]} 33. Bd5 {[%clk 0:00:28]}  Ke7 {[%clk 0:00:41]} 34. Kg2 {[%clk 0:00:28]}  Be1 {[%clk 0:00:39]} 35. Ne4 {[%clk 0:00:27]}  Be6 {[%clk 0:00:36]} 36. Bxe6 {[%clk 0:00:20]}  fxe6 {[%clk 0:00:37]} 37. Kf3 {[%clk 0:00:20]}  f5 {[%clk 0:00:35]} 38. Nf2 {[%clk 0:00:17]}  Bxf2 {[%clk 0:00:33]} 39. Kxf2 {[%clk 0:00:17]}  Kd6 {[%clk 0:00:31]} 40. Ke3 {[%clk 0:00:17]}  e5 {[%clk 0:00:32]} 41. Kd3 {[%clk 0:00:18]}  Kc5 {[%clk 0:00:32]} 42. Kc3 {[%clk 0:00:18]}  e4 {[%clk 0:00:32]} 43. h4 {[%clk 0:00:19]}  h5 {[%clk 0:00:32]} 44. a3 {[%clk 0:00:19]}  a6 {[%clk 0:00:30]} 45. a4 {[%clk 0:00:20]}  a5 {[%clk 0:00:31]} 0-1


[Site "https://www.chess.com"]

[Event "Titled Tuesday Blitz March 28 Late 2023"]
[White "Lewtak, Damian"]
[Black "Fan_Of_Chucky"]
[WhiteFideId "1141724"]
[WhiteElo "2302"]
[BlackElo "2353"]
[Result "1-0"]
[Round "01"]
[TimeControl "180+2"]
[Date "2023.03.28"]
[WhiteClock "0:02:10"]
[BlackClock "0:01:21"]

1. e4 {[%clk 0:03:00]}  c5 {[%clk 0:02:59]} 2. Nf3 {[%clk 0:02:57]}  a6 {[%clk 0:02:58]} 3. c3 {[%clk 0:02:56]}  d5 {[%clk 0:02:58]} 4. exd5 {[%clk 0:02:56]}  Qxd5 {[%clk 0:02:59]} 5. d4 {[%clk 0:02:57]}  Nf6 {[%clk 0:02:58]} 6. Be2 {[%clk 0:02:57]}  cxd4 {[%clk 0:02:57]} 7. cxd4 {[%clk 0:02:57]}  e6 {[%clk 0:02:56]} 8. Nc3 {[%clk 0:02:58]}  Qd8 {[%clk 0:02:55]} 9. O-O {[%clk 0:02:56]}  b5 {[%clk 0:02:55]} 10. Ne5 {[%clk 0:02:54]}  Bb7 {[%clk 0:02:54]} 11. Bf3 {[%clk 0:02:55]}  Nd5 {[%clk 0:02:50]} 12. Re1 {[%clk 0:02:50]}  Be7 {[%clk 0:02:48]} 13. Qe2 {[%clk 0:02:44]}  O-O {[%clk 0:02:43]} 14. Bd2 {[%clk 0:02:33]}  Bf6 {[%clk 0:02:03]} 15. Ng4 {[%clk 0:02:29]}  Bxd4 {[%clk 0:01:59]} 16. Rad1 {[%clk 0:02:29]}  Bxc3 {[%clk 0:01:55]} 17. bxc3 {[%clk 0:02:30]}  Nd7 {[%clk 0:01:45]} 18. g3 {[%clk 0:02:22]}  N7b6 {[%clk 0:01:43]} 19. h4 {[%clk 0:02:21]}  Qc7 {[%clk 0:01:39]} 20. h5 {[%clk 0:02:16]}  Rac8 {[%clk 0:01:27]} 21. h6 {[%clk 0:02:16]}  Nxc3 {[%clk 0:01:24]} 22. Bxc3 {[%clk 0:02:11]}  Bxf3 {[%clk 0:01:23]} 23. hxg7 {[%clk 0:02:11]}  Bxe2 {[%clk 0:01:21]} 24. Nh6# {[%clk 0:02:10]} 1-0


[Site "https://www.chess.com"]

[Event "Titled Tuesday Blitz March 28 Late 2023"]
[White "Polanco Nunez, Yoel Estarling"]
[Black "Manukyan, Sargis A."]
[WhiteFideId "6401783"]
[BlackFideId "13303970"]
[WhiteElo "2132"]
[BlackElo "2187"]
[Result "0-1"]
[Round "01"]
[TimeControl "180+2"]
[Date "2023.03.28"]
[WhiteClock "0:01:13"]
[BlackClock "0:02:19"]

1. d4 {[%clk 0:02:59]}  d5 {[%clk 0:02:59]} 2. c4 {[%clk 0:02:58]}  e6 {[%clk 0:02:59]} 3. Nc3 {[%clk 0:02:58]}  Nf6 {[%clk 0:02:59]} 4. cxd5 {[%clk 0:02:58]}  Nxd5 {[%clk 0:02:59]} 5. e4 {[%clk 0:02:56]}  Nxc3 {[%clk 0:02:59]} 6. bxc3 {[%clk 0:02:57]}  c5 {[%clk 0:03:00]} 7. Rb1 {[%clk 0:02:54]}  cxd4 {[%clk 0:03:01]} 8. cxd4 {[%clk 0:02:54]}  Qa5+ {[%clk 0:02:59]} 9. Qd2 {[%clk 0:02:54]}  Qxd2+ {[%clk 0:02:58]} 10. Bxd2 {[%clk 0:02:55]}  Nc6 {[%clk 0:02:58]} 11. Nf3 {[%clk 0:02:55]}  Be7 {[%clk 0:02:58]} 12. Bb5 {[%clk 0:02:51]}  Bd7 {[%clk 0:02:57]} 13. d5 {[%clk 0:02:41]}  exd5 {[%clk 0:02:54]} 14. exd5 {[%clk 0:02:42]}  Nd8 {[%clk 0:02:52]} 15. Bxd7+ {[%clk 0:02:39]}  Kxd7 {[%clk 0:02:53]} 16. O-O {[%clk 0:02:30]}  Bf6 {[%clk 0:02:49]} 17. Be3 {[%clk 0:02:22]}  b6 {[%clk 0:02:48]} 18. Nd4 {[%clk 0:02:21]}  Bxd4 {[%clk 0:02:44]} 19. Bxd4 {[%clk 0:02:21]}  f6 {[%clk 0:02:45]} 20. Rbc1 {[%clk 0:02:17]}  Rc8 {[%clk 0:02:40]} 21. Rxc8 {[%clk 0:02:15]}  Kxc8 {[%clk 0:02:41]} 22. Re1 {[%clk 0:02:12]}  Kd7 {[%clk 0:02:41]} 23. Kf1 {[%clk 0:02:10]}  Re8 {[%clk 0:02:42]} 24. Rxe8 {[%clk 0:02:08]}  Kxe8 {[%clk 0:02:43]} 25. Ke2 {[%clk 0:02:08]}  Kd7 {[%clk 0:02:43]} 26. Kd3 {[%clk 0:02:08]}  Nb7 {[%clk 0:02:42]} 27. a4 {[%clk 0:02:04]}  Nd6 {[%clk 0:02:41]} 28. g4 {[%clk 0:01:59]}  Nb7 {[%clk 0:02:40]} 29. Be3 {[%clk 0:01:49]}  Kd6 {[%clk 0:02:37]} 30. Ke4 {[%clk 0:01:49]}  Nc5+ {[%clk 0:02:36]} 31. Bxc5+ {[%clk 0:01:49]}  bxc5 {[%clk 0:02:36]} 32. f4 {[%clk 0:01:41]}  g6 {[%clk 0:02:29]} 33. h4 {[%clk 0:01:36]}  h6 {[%clk 0:02:23]} 34. g5 {[%clk 0:01:30]}  f5+ {[%clk 0:02:21]} 35. Kd3 {[%clk 0:01:17]}  h5 {[%clk 0:02:22]} 36. Kc4 {[%clk 0:01:15]}  a5 {[%clk 0:02:16]} 37. Kb5 {[%clk 0:01:13]}  Kxd5 {[%clk 0:02:17]} 38. Kxa5 {[%clk 0:01:13]}  c4 {[%clk 0:02:18]} 39. Kb6 {[%clk 0:01:14]}  c3 {[%clk 0:02:18]} 40. a5 {[%clk 0:01:15]}  c2 {[%clk 0:02:18]} 41. a6 {[%clk 0:01:16]}  c1=Q {[%clk 0:02:19]} 42. a7 {[%clk 0:01:17]}  Qc6+ {[%clk 0:02:19]} 43. Ka5 {[%clk 0:01:15]}  Kc5 {[%clk 0:02:19]} 44. a8=Q {[%clk 0:01:13]}  Qb5# {[%clk 0:02:19]} 0-1


[Site "https://www.chess.com"]